fUST/lending_fUST_20250301
["ID","MTS","AMOUNT","RATE_DAILY","PERIOD"]
[354882927,1740772247767,-500.0,0.00049589,120]
[354882928,1740772247777,-184.421552,0.00049589,120]
[354882929,1740772247787,-500.0,0.00049589,120]
[354882930,1740772247796,-541.47576483,0.00049589,120]
[354882931,1740772247805,-500.0,0.00049589,120]
[354882932,1740772247815,-188.391199,0.00049589,110]
[354882933,1740772247824,-188.391199,0.00049589,110]
[354882934,1740772247834,-184.421552,0.00049589,120]
[354882935,1740772247843,-188.391199,0.00049589,110]
[354882936,1740772247853,-184.421552,0.00049589,120]
[354882937,1740772247862,-184.421549,0.00049589,120]
[354882938,1740772247871,-188.391199,0.00049589,110]
[354882939,1740772247880,-188.391199,0.00049589,110]
[354882940,1740772247889,-188.391195,0.00049589,110]
[354882941,1740772247898,-500.0,0.00049589,120]
[354882942,1740772247907,-500.0,0.00049589,120]
[354882943,1740772247916,-500.0,0.00049589,120]
[354882944,1740772247926,-500.0,0.00049589,120]
[354882945,1740772247935,-500.0,0.00049589,120]
[354882946,1740772247943,-960.3,0.00049589,120]
[354882947,1740772247952,-500.0,0.00049589,120]
[354882948,1740772247961,-500.0,0.00049589,120]
[354882949,1740772247971,-500.0,0.00049589,120]
[354882950,1740772247980,-517.94,0.00049589,120]
[354882951,1740772247989,-209.75557909,0.00049589,120]
[354882952,1740772247998,-500.0,0.00049589,120]
[354882953,1740772248007,-500.0,0.00049589,120]
[354882954,1740772248018,-500.0,0.00049589,120]
[354882955,1740772248027,-536.72,0.00049589,120]
[354882957,1740772248037,-500.0,0.00049589,120]
[354882959,1740772248046,-500.0,0.00049589,120]
[354882960,1740772248055,-831.46,0.00049589,120]
[354882961,1740772248064,-500.0,0.00049589,120]
[354882962,1740772248074,-500.0,0.00049589,120]
[354882963,1740772248083,-500.0,0.00049589,120]
[354882964,1740772248092,-500.0,0.00049589,120]
[354882965,1740772248101,-500.0,0.00049589,120]
[354882966,1740772248110,-500.0,0.00049589,120]
[354882967,1740772248120,-500.0,0.00049589,120]
[354882968,1740772248131,-500.0,0.00049589,120]
[354882969,1740772248140,-500.0,0.00049589,120]
[354882970,1740772248150,-501.58259781,0.00049589,120]
[354882971,1740772248164,-500.0,0.00049589,7]
[354882972,1740772248174,-500.0,0.00049589,120]
[354882973,1740772248184,-500.0,0.00049589,120]
[354882974,1740772248195,-500.0,0.00049589,120]
[354882975,1740772248205,-500.0,0.00049589,120]
[354882976,1740772248215,-500.0,0.00049589,120]
[354882977,1740772248224,-408.68699391,0.00049589,120]
[354882978,1740772248234,-500.0,0.00049589,120]
[354882979,1740772248243,-500.0,0.00049589,120]
[354882980,1740772248253,-500.0,0.00049589,120]
[354882981,1740772248265,-500.0,0.00049589,120]
[354882982,1740772248275,-500.0,0.00049589,120]
[354882983,1740772248285,-500.0,0.00049589,120]
[354882984,1740772248295,-500.0,0.00049589,120]
[354882985,1740772248304,-500.0,0.00049589,120]
[354882986,1740772248314,-1912.65,0.00049589,120]
[354882987,1740772248325,-500.0,0.00049589,120]
[354882988,1740772248335,-583.13,0.00049589,120]
[354882989,1740772248345,-500.0,0.00049589,120]
[354882990,1740772248355,-661.13,0.00049589,120]
[354882991,1740772248366,-987.48,0.00049589,120]
[354882992,1740772248377,-500.0,0.00049589,120]
[354882993,1740772248388,-500.0,0.00049589,120]
[354882994,1740772248399,-500.0,0.00049589,120]
[354882995,1740772248410,-500.0,0.00049589,120]
[354882996,1740772248421,-500.0,0.00049589,120]
[354882997,1740772248433,-500.0,0.00049589,120]
[354882998,1740772248444,-500.0,0.00049589,120]
[354882999,1740772248455,-500.0,0.00049589,120]
[354883000,1740772248466,-167.483052,0.00049589,120]
[354883001,1740772248477,-500.0,0.00049589,120]
[354883002,1740772248488,-2229.46,0.00049589,120]
[354883003,1740772248499,-500.0,0.00049589,120]
[354883004,1740772248509,-500.0,0.00049589,120]
[354883005,1740772248523,-500.0,0.00049589,120]
[354883006,1740772248534,-812.24,0.00049589,120]
[354883007,1740772248545,-639.1,0.00049589,120]
[354883008,1740772248556,-500.0,0.00049589,120]
[354883009,1740772248567,-1945.82,0.00049589,120]
[354883010,1740772248579,-1598.58,0.00049589,120]
[354883011,1740772248590,-500.0,0.00049589,120]
[354883012,1740772248601,-500.0,0.00049589,120]
[354883013,1740772248611,-500.0,0.00049589,120]
[354883014,1740772248622,-1263.93,0.00049589,120]
[354883015,1740772248633,-500.0,0.00049589,120]
[354883016,1740772248643,-313.32146105,0.00049589,120]
[354883017,1740772248653,-502.57269803,0.00049589,7]
[354883018,1740772248663,-500.0,0.00049589,120]
[354883019,1740772248673,-500.0,0.00049589,120]
[354883020,1740772248683,-500.0,0.00049589,120]
[354883021,1740772248692,-500.0,0.00049589,120]
[354883022,1740772248702,-500.0,0.00049589,120]
[354883023,1740772248712,-1046.3,0.00049589,120]
[354883024,1740772248722,-500.0,0.00049589,120]
[354883025,1740772248732,-1023.20329,0.00049589,120]
[354883026,1740772248741,-1023.20329,0.00049589,120]
[354883027,1740772248751,-500.0,0.00049589,120]
[354883028,1740772248760,-552.35,0.00049589,120]
[354883029,1740772248773,-1023.20329,0.00049589,120]
[354883030,1740772248782,-1023.203297,0.00049589,120]
[354883031,1740772248792,-500.0,0.00049589,120]
[354883032,1740772248802,-500.0,0.00049589,120]
[354883033,1740772248812,-933.87,0.00049589,120]
[354883034,1740772248822,-1402.31,0.00049589,120]
[354883035,1740772248832,-500.0,0.00049589,120]
[354883036,1740772248842,-508.78561269,0.00049589,120]
[354883037,1740772248852,-500.0,0.00049589,120]
[354883038,1740772248862,-1104.21,0.00049589,120]
[354883039,1740772248872,-500.0,0.00049589,120]
[354883040,1740772248881,-295.68200752,0.00049589,120]
[354883041,1740772248891,-500.0,0.00049589,120]
[354883042,1740772248900,-1542.45,0.00049589,120]
[354883043,1740772248910,-500.0,0.00049589,120]
[354883044,1740772248920,-500.0,0.00049589,120]
[354883045,1740772248930,-685.8,0.00049589,120]
[354883046,1740772248940,-500.0,0.00049589,120]
[354883047,1740772248950,-2326.8,0.00049589,120]
[354883048,1740772248959,-502.34782471,0.00049589,120]
[354883049,1740772248969,-151.0,0.00049589,120]
[354883050,1740772248979,-500.0,0.00049589,120]
[354883051,1740772248988,-757.82,0.00049589,120]
[354883052,1740772248997,-744.64,0.00049589,120]
[354883053,1740772249006,-1797.49,0.00049589,120]
[354883054,1740772249017,-560.73,0.00049589,120]
[354883055,1740772249027,-996.22,0.00049589,120]
[354883056,1740772249037,-577.64,0.00049589,120]
[354883057,1740772249047,-500.0,0.00049589,120]
[354883058,1740772249056,-500.0,0.00049589,120]
[354883059,1740772249066,-500.0,0.00049589,120]
[354883060,1740772249076,-987.86,0.00049589,120]
[354883061,1740772249086,-500.0,0.00049589,120]
[354883062,1740772249095,-500.0,0.00049589,120]
[354883063,1740772249105,-500.0,0.00049589,120]
[354883064,1740772249115,-500.0,0.00049589,120]
[354883065,1740772249125,-500.0,0.00049589,120]
[354883066,1740772249135,-500.0,0.00049589,120]
[354883067,1740772249146,-1659.86,0.00049589,120]
[354883068,1740772249157,-500.0,0.00049589,120]
[354883069,1740772249169,-500.0,0.00049589,120]
[354883070,1740772249178,-500.0,0.00049589,120]
[354883071,1740772249188,-713.99,0.00049589,120]
[354883072,1740772249199,-500.0,0.00049589,120]
[354883073,1740772249209,-500.0,0.00049589,120]
[354883074,1740772249219,-500.0,0.00049589,120]
[354883075,1740772249228,-566.22,0.00049589,120]
[354883076,1740772249239,-531.90953947,0.00049589,120]
[354883077,1740772249249,-500.0,0.00049589,120]
[354883078,1740772249259,-500.0,0.00049589,120]
[354883079,1740772249268,-500.0,0.00049589,120]
[354883080,1740772249278,-500.0,0.00049589,120]
[354883081,1740772249288,-500.0,0.00049589,120]
[354883082,1740772249298,-500.0,0.00049589,120]
[354883083,1740772249308,-500.0,0.00049589,120]
[354883084,1740772249318,-500.0,0.00049589,120]
[354883085,1740772249329,-1274.42,0.00049589,120]
[354883086,1740772249339,-2196.03,0.00049589,120]
[354883087,1740772249349,-500.0,0.00049589,120]
[354883088,1740772249359,-500.0,0.00049589,120]
[354883089,1740772249369,-325.641861,0.00049589,120]
[354883090,1740772249379,-500.0,0.00049589,120]
[354883091,1740772249390,-584.98,0.00049589,120]
[354883092,1740772249401,-325.641855,0.00049589,120]
[354883093,1740772249411,-500.0,0.00049589,120]
[354883094,1740772249420,-2152.05,0.00049589,120]
[354883095,1740772249430,-500.0,0.00049589,120]
[354883096,1740772249440,-506.27,0.00049589,120]
[354883097,1740772249450,-500.0,0.00049589,120]
[354883098,1740772249460,-500.0,0.00049589,120]
[354883099,1740772249470,-500.0,0.00049589,120]
[354883100,1740772249480,-2537.02,0.00049589,120]
[354883101,1740772249490,-213.2596388,0.00049589,120]
[354883102,1740772249499,-500.0,0.00049589,120]
[354883103,1740772249509,-500.0,0.00049589,120]
[354883104,1740772249519,-500.0,0.00049589,120]
[354883105,1740772249529,-505.38307658,0.00049589,120]
[354883106,1740772249539,-500.0,0.00049589,30]
[354883107,1740772249549,-546.67,0.00049589,120]
[354883108,1740772249559,-500.0,0.00049589,120]
[354883109,1740772249569,-300.0,0.00049589,120]
[354883110,1740772249579,-1237.52,0.00049589,120]
[354883111,1740772249589,-500.0,0.00049589,120]
[354883112,1740772249599,-3141.54,0.00049589,120]
[354883113,1740772249609,-1830.15,0.00049589,120]
[354883114,1740772249619,-1419.311823,0.00049589,120]
[354883115,1740772249629,-1419.311823,0.00049589,120]
[354883116,1740772249639,-1419.311823,0.00049589,120]
[354883117,1740772249648,-862.49,0.00049589,120]
[354883118,1740772249658,-500.0,0.00049589,120]
[354883119,1740772249667,-1419.311823,0.00049589,120]
[354883120,1740772249677,-1419.311823,0.00049589,120]
[354883121,1740772249687,-1419.31181985,0.00049589,120]
[354883122,1740772249696,-757.1,0.00049589,120]
[354883123,1740772249706,-500.0,0.00049589,120]
[354883124,1740772249715,-500.0,0.00049589,120]
[354883125,1740772249725,-500.0,0.00049589,120]
[354883126,1740772249735,-500.0,0.00049589,120]
[354883127,1740772249745,-500.0,0.00049589,120]
[354883128,1740772249754,-556.17,0.00049589,120]
[354883129,1740772249765,-1947.34,0.00049589,120]
[354883130,1740772249775,-500.0,0.00049589,120]
[354883131,1740772249785,-621.33,0.00049589,120]
[354883132,1740772249795,-2123.64,0.00049589,120]
[354883133,1740772249805,-500.0,0.00049589,120]
[354883134,1740772249814,-500.0,0.00049589,120]
[354883135,1740772249824,-774.08,0.00049589,120]
[354883136,1740772249834,-500.0,0.00049589,120]
[354883137,1740772249843,-500.0,0.00049589,120]
[354883138,1740772249853,-500.0,0.00049589,120]
[354883139,1740772249863,-500.0,0.00049589,120]
[354883140,1740772249873,-1055.02,0.00049589,120]
[354883141,1740772249883,-2076.88,0.00049589,120]
[354883142,1740772249893,-1621.98,0.00049589,120]
[354883143,1740772249903,-212.234855,0.00049589,120]
[354883144,1740772249912,-316.649157,0.00049589,120]
[354883145,1740772249922,-577.41447,0.00049589,120]
[354883146,1740772249931,-212.234861,0.00049589,120]
[354883147,1740772249941,-500.0,0.00049589,120]
[354883148,1740772249950,-500.0,0.00049589,30]
[354883149,1740772249960,-577.414469,0.00049589,120]
[354883150,1740772249969,-500.0,0.00049589,120]
[354883151,1740772249979,-500.0,0.00049589,120]
[354883152,1740772249989,-500.0,0.00049589,120]
[354883153,1740772249998,-500.0,0.00049589,120]
[354883154,1740772250008,-500.0,0.00049589,120]
[354883155,1740772250018,-1404.48,0.00049589,120]
[354883156,1740772250027,-500.0,0.00049589,120]
[354883157,1740772250037,-500.0,0.00049589,120]
[354883158,1740772250047,-656.24,0.00049589,120]
[354883159,1740772250056,-500.0,0.00049589,120]
[354883160,1740772250066,-508.79998576,0.00049589,120]
[354883161,1740772250076,-500.0,0.00049589,120]
[354883162,1740772250086,-500.0,0.00049589,120]
[354883163,1740772250096,-500.0,0.00049589,120]
[354883164,1740772250105,-500.0,0.00049589,14]
[354883165,1740772250115,-442.68744716,0.00049589,120]
[354883166,1740772250124,-500.0,0.00049589,120]
[354883167,1740772250134,-1571.06,0.00049589,120]
[354883168,1740772250144,-500.0,0.00049589,120]
[354883169,1740772250155,-1293.26,0.00049589,120]
[354883170,1740772250166,-500.0,0.00049589,120]
[354883171,1740772250176,-1000.0,0.00049589,120]
[354883172,1740772250186,-500.0,0.00049589,120]
[354883173,1740772250196,-500.0,0.00049589,120]
[354883174,1740772250206,-500.0,0.00049589,120]
[354883175,1740772250216,-634.93,0.00049589,120]
[354883176,1740772250226,-611.61,0.00049589,120]
[354883177,1740772250238,-500.0,0.00049589,120]
[354883178,1740772250248,-500.0,0.00049589,120]
[354883179,1740772250258,-500.0,0.00049589,120]
[354883180,1740772250270,-1638.65,0.00049589,120]
[354883181,1740772250280,-718.01,0.00049589,120]
[354883182,1740772250290,-500.0,0.00049589,30]
[354883183,1740772250300,-500.0,0.00049589,120]
[354883184,1740772250310,-500.0,0.00049589,120]
[354883185,1740772250320,-507.97550274,0.00049589,120]
[354883186,1740772250331,-575.15,0.00049589,120]
[354883187,1740772250341,-713.0,0.00049589,120]
[354883188,1740772250352,-500.0,0.00049589,120]
[354883189,1740772250363,-2661.22,0.00049589,120]
[354883190,1740772250372,-2074.22,0.00049589,120]
[354883191,1740772250382,-500.0,0.00049589,120]
[354883192,1740772250392,-517.18786742,0.00049589,120]
[354883193,1740772250402,-500.0,0.00049589,120]
[354883194,1740772250412,-500.0,0.00049589,120]
[354883195,1740772250422,-500.0,0.00049589,120]
[354883196,1740772250431,-558.78,0.00049589,120]
[354883197,1740772250441,-500.0,0.00049589,120]
[354883198,1740772250450,-500.0,0.00049589,120]
[354883199,1740772250460,-500.0,0.00049589,120]
[354883200,1740772250470,-500.0,0.00049589,120]
[354883201,1740772250480,-500.0,0.00049589,120]
[354883202,1740772250490,-500.0,0.00049589,120]
[354883203,1740772250500,-500.0,0.00049589,120]
[354883204,1740772250510,-3173.58,0.00049589,120]
[354883205,1740772250522,-500.0,0.00049589,120]
[354883206,1740772250532,-910.02,0.00049589,120]
[354883207,1740772250542,-500.0,0.00049589,120]
[354883208,1740772250552,-1015.09,0.00049589,120]
[354883209,1740772250562,-500.0,0.00049589,120]
[354883210,1740772250572,-500.0,0.00049589,120]
[354883211,1740772250582,-500.0,0.00049589,120]
[354883212,1740772250592,-3671.16,0.00049589,120]
[354883213,1740772250602,-500.0,0.00049589,120]
[354883214,1740772250612,-517.56108066,0.00049589,120]
[354883215,1740772250621,-507.47082195,0.00049589,120]
[354883216,1740772250631,-500.0,0.00049589,120]
[354883217,1740772250641,-1683.37,0.00049589,120]
[354883218,1740772250652,-500.0,0.00049589,120]
[354883219,1740772250662,-500.0,0.00049589,120]
[354883220,1740772250672,-500.0,0.00049589,120]
[354883221,1740772250682,-200.0,0.00049589,7]
[354883222,1740772250693,-500.0,0.00049589,120]
[354883223,1740772250703,-641.49,0.00049589,120]
[354883224,1740772250713,-845.06,0.00049589,120]
[354883225,1740772250885,-500.0,0.00049589,120]
[354883226,1740772250895,-500.0,0.00049589,120]
[354883227,1740772250904,-500.0,0.00049589,120]
[354883228,1740772250918,-392.3945619,0.00049589,120]
[354883229,1740772250928,-500.0,0.00049589,120]
[354883230,1740772250939,-500.0,0.00049589,21]
[354883231,1740772250949,-500.0,0.00049589,120]
[354883232,1740772250959,-500.0,0.00049589,120]
[354883233,1740772250968,-500.0,0.00049589,120]
[354883234,1740772250977,-500.0,0.00049589,120]
[354883235,1740772250987,-734.53,0.00049589,120]
[354883236,1740772250997,-3618.63,0.00049589,120]
[354883237,1740772251006,-500.0,0.00049589,120]
[354883238,1740772251016,-500.0,0.00049589,120]
[354883239,1740772251027,-4648.75,0.00049589,120]
[354883240,1740772251036,-500.0,0.00049589,120]
[354883241,1740772251046,-508.65853171,0.00049589,120]
[354883242,1740772251056,-963.44,0.00049589,120]
[354883243,1740772251066,-500.0,0.00049589,120]
[354883244,1740772251076,-500.0,0.00049589,120]
[354883245,1740772251085,-500.0,0.00049589,120]
[354883246,1740772251094,-500.0,0.00049589,120]
[354883247,1740772251105,-500.0,0.00049589,120]
[354883248,1740772251114,-732.65,0.00049589,120]
[354883249,1740772251124,-500.0,0.00049589,120]
[354883250,1740772251133,-530.23,0.00049589,120]
[354883251,1740772251142,-500.0,0.00049589,120]
[354883252,1740772251152,-642.9,0.00049589,120]
[354883253,1740772251165,-500.0,0.00049589,120]
[354883254,1740772251175,-500.0,0.00049589,120]
[354883255,1740772251184,-500.0,0.00049589,120]
[354883256,1740772251195,-686.43,0.00049589,120]
[354883257,1740772251204,-1682.11,0.00049589,120]
[354883258,1740772251215,-563.16,0.00049589,120]
[354883259,1740772251224,-140755.32185904,0.00049589,7]
[354883260,1740772251843,-8677.334387,0.00049589,7]
[354883261,1740772259419,-86717.55375396,0.00049589,7]
[354883262,1740772259430,-505.25,0.00049589,120]
[354883263,1740772259440,-1935.72,0.00049589,120]
[354883264,1740772259450,-500.0,0.00049589,120]
[354883265,1740772259461,-500.0,0.00049589,120]
[354883266,1740772259471,-1414.0,0.00049589,120]
[354883267,1740772259481,-500.0,0.00049589,120]
[354883268,1740772259491,-2190.87,0.00049589,120]
[354883269,1740772259501,-500.0,0.00049589,120]
[354883270,1740772259511,-626.51,0.00049589,120]
[354883271,1740772259521,-12458.31,0.00049589,120]
[354883272,1740772259532,-638.7,0.00049589,120]
[354883273,1740772259542,-500.0,0.00049589,120]
[354883274,1740772259553,-1003.64,0.00049589,120]
[354883275,1740772259563,-4515.56,0.00049589,120]
[354883276,1740772259574,-500.0,0.00049589,120]
[354883277,1740772259586,-729.62,0.00049589,120]
[354883278,1740772259596,-500.0,0.00049589,120]
[354883279,1740772259606,-500.0,0.00049589,120]
[354883280,1740772259615,-719.25,0.00049589,120]
[354883281,1740772259625,-500.0,0.00049589,120]
[354883282,1740772259635,-500.0,0.00049589,120]
[354883283,1740772259644,-594.76,0.00049589,120]
[354883284,1740772259655,-513.96364367,0.00049589,120]
[354883285,1740772259664,-564.26,0.00049589,120]
[354883286,1740772259674,-151.0,0.00049589,120]
[354883287,1740772259684,-151.0,0.00049589,120]
[354883288,1740772259694,-151.0,0.00049589,120]
[354883289,1740772259704,-500.0,0.00049589,120]
[354883290,1740772259714,-2902.53,0.00049589,120]
[354883291,1740772259723,-151.0,0.00049589,120]
[354883292,1740772259733,-151.0,0.00049589,120]
[354883293,1740772259743,-500.0,0.00049589,120]
[354883294,1740772259754,-1178.2,0.00049589,120]
[354883295,1740772259763,-500.0,0.00049589,120]
[354883296,1740772259773,-500.0,0.00049589,120]
[354883297,1740772259785,-1261.75,0.00049589,120]
[354883298,1740772259795,-151.0,0.00049589,120]
[354883299,1740772259804,-175.85382528,0.00049589,120]
[354883300,1740772259814,-151.0,0.00049589,120]
[354883301,1740772259824,-151.0,0.00049589,120]
[354883302,1740772259833,-220.130218,0.00049589,120]
[354883303,1740772259843,-558.84031334,0.00049589,120]
[354883304,1740772259853,-7044.58,0.00049589,120]
[354883305,1740772259863,-500.0,0.00049589,120]
[354883306,1740772259873,-500.0,0.00049589,120]
[354883307,1740772259882,-500.0,0.00049589,45]
[354883308,1740772259891,-513.5,0.00049589,120]
[354883309,1740772259901,-500.0,0.00049589,120]
[354883310,1740772259911,-1376.79,0.00049589,120]
[354883311,1740772259921,-500.0,0.00049589,120]
[354883312,1740772259930,-500.0,0.00049589,120]
[354883313,1740772259940,-500.0,0.00049589,120]
[354883314,1740772259949,-500.0,0.00049589,120]
[354883315,1740772259959,-238.116988,0.00049589,120]
[354883316,1740772259968,-593.31,0.00049589,120]
[354883317,1740772259978,-151.0,0.00049589,120]
[354883318,1740772259987,-151.0,0.00049589,120]
[354883319,1740772259997,-151.0,0.00049589,120]
[354883320,1740772260007,-222.1664778,0.00049589,120]
[354883321,1740772260017,-2076.74,0.00049589,120]
[354883322,1740772260027,-151.0,0.00049589,120]
[354883323,1740772260038,-2323.79,0.00049589,15]
[354883324,1740772260049,-151.0,0.00049589,120]
[354883325,1740772260060,-151.0,0.00049589,7]
[354883326,1740772260071,-246.330403,0.00049589,7]
[354883327,1740772260082,-1137.1,0.00049589,120]
[354883328,1740772260093,-151.0,0.00049589,120]
[354883329,1740772260103,-151.0,0.00049589,120]
[354883330,1740772260113,-500.0,0.00049589,120]
[354883331,1740772260124,-151.0,0.00049589,120]
[354883332,1740772260134,-474.3016715,0.00049589,120]
[354883333,1740772260144,-500.0,0.00049589,120]
[354883334,1740772260154,-151.0,0.00049589,120]
[354883335,1740772260166,-151.0,0.00049589,120]
[354883336,1740772260175,-500.0,0.00049589,120]
[354883337,1740772260185,-500.0,0.00049589,120]
[354883338,1740772260196,-500.0,0.00049589,120]
[354883339,1740772260207,-500.0,0.00049589,120]
[354883340,1740772260217,-500.0,0.00049589,120]
[354883341,1740772260227,-500.0,0.00049589,120]
[354883342,1740772260239,-4654.22,0.00049589,120]
[354883343,1740772260250,-500.04126669,0.00049589,120]
[354883344,1740772260260,-500.0,0.00049589,120]
[354883345,1740772260270,-1347.12,0.00049589,120]
[354883346,1740772260282,-590.54,0.00049589,120]
[354883347,1740772260296,-1420.4,0.00049589,120]
[354883348,1740772260307,-3761.87,0.00049589,120]
[354883349,1740772260317,-500.0,0.00049589,120]
[354883350,1740772260327,-500.0,0.00049589,120]
[354883351,1740772260337,-500.0,0.00049589,120]
[354883352,1740772260347,-500.0,0.00049589,120]
[354883353,1740772260358,-1496.96,0.00049589,120]
[354883354,1740772260612,-500.0,0.00049589,120]
[354883355,1740772260623,-500.0,0.00049589,120]
[354883356,1740772260633,-11524.01,0.00049589,120]
[354883357,1740772260642,-500.0,0.00049589,120]
[354883358,1740772260652,-1574.1,0.00049589,120]
[354883359,1740772260662,-1000.0,0.00049589,5]
[354883360,1740772260671,-553.45060421,0.00049589,120]
[354883361,1740772260680,-500.0,0.00049589,120]
[354883362,1740772260690,-500.0,0.00049589,120]
[354883363,1740772260699,-210.83389426,0.00049589,120]
[354883364,1740772260709,-7336.88,0.00049589,120]
[354883365,1740772260719,-1822.87,0.00049589,120]
[354883366,1740772260729,-500.0,0.00049589,120]
[354883367,1740772260738,-500.0,0.00049589,120]
[354883368,1740772260748,-624.84,0.00049589,120]
[354883369,1740772260758,-500.0,0.00049589,120]
[354883370,1740772260768,-500.0,0.00049589,120]
[354883371,1740772260778,-151.0,0.00049589,120]
[354883372,1740772260787,-151.0,0.00049589,120]
[354883373,1740772260796,-500.0,0.00049589,120]
[354883374,1740772260806,-151.0,0.00049589,120]
[354883375,1740772260815,-154.189757,0.00049589,120]
[354883376,1740772260825,-500.0,0.00049589,120]
[354883377,1740772260834,-2155.13,0.00049589,120]
[354883378,1740772260844,-47581.62,0.00049589,7]
[354883379,1740772260853,-500.0,0.00049589,120]
[354883380,1740772260863,-634.97,0.00049589,120]
[354883381,1740772260872,-1323.52,0.00049589,120]
[354883382,1740772260882,-500.0,0.00049589,120]
[354883383,1740772260892,-500.0,0.00049589,120]
[354883384,1740772260901,-500.0,0.00049589,120]
[354883385,1740772260910,-183.61723593,0.00049589,120]
[354883386,1740772260919,-1707.8,0.00049589,120]
[354883387,1740772260928,-3261.2,0.00049589,120]
[354883388,1740772260938,-500.0,0.00049589,120]
[354883389,1740772260947,-500.0,0.00049589,120]
[354883390,1740772260957,-500.0,0.00049589,120]
[354883391,1740772260966,-206.258174,0.00049589,120]
[354883392,1740772260976,-206.258174,0.00049589,120]
[354883393,1740772260985,-206.258174,0.00049589,120]
[354883394,1740772260995,-206.258174,0.00049589,120]
[354883395,1740772261004,-206.258174,0.00049589,120]
[354883396,1740772261013,-5196.69,0.00049589,120]
[354883397,1740772261024,-586.95,0.00049589,120]
[354883398,1740772261034,-206.258174,0.00049589,120]
[354883399,1740772261044,-500.0,0.00049589,120]
[354883400,1740772261053,-206.258174,0.00049589,120]
[354883401,1740772261063,-206.258174,0.00049589,120]
[354883402,1740772261073,-1604.71,0.00049589,120]
[354883403,1740772261083,-206.258174,0.00049589,120]
[354883404,1740772261092,-206.258174,0.00049589,120]
[354883405,1740772261102,-556.6,0.00049589,120]
[354883406,1740772261111,-2737.69,0.00049589,120]
[354883407,1740772261121,-500.0,0.00049589,120]
[354883408,1740772261130,-1000.0,0.00049589,20]
[354883409,1740772261140,-1662.78,0.00049589,120]
[354883410,1740772261150,-501.77,0.00049589,120]
[354883411,1740772261161,-500.0,0.00049589,120]
[354883412,1740772261172,-1467.29,0.00049589,120]
[354883413,1740772261182,-1000.0,0.00049589,120]
[354883414,1740772261191,-1574.27,0.00049589,120]
[354883415,1740772261202,-505.83,0.00049589,120]
[354883416,1740772261212,-500.0,0.00049589,120]
[354883417,1740772261222,-500.0,0.00049589,120]
[354883418,1740772261231,-844.17,0.00049589,120]
[354883419,1740772261243,-765.27870227,0.00049589,120]
[354883420,1740772261951,-32.20129773,0.00049589,120]
[354883421,1740772261961,-810.94,0.00049589,120]
[354883422,1740772261971,-237.34246425,0.00049589,120]
[354883423,1740772263605,-1092.94,0.00049305,10]
[354883424,1740772263616,-262.65753575,0.00049589,120]
[354883425,1740772263627,-500.0,0.00049589,120]
[354883426,1740772263638,-13066.47,0.00049589,120]
[354883427,1740772263647,-151.0,0.00049589,120]
[354883428,1740772263658,-500.0,0.00049589,120]